[Event "ONJK 2024 ABC"]
[Site "Velp, Netherlands"]
[Date "2024.08.06"]
[Round "6.11"]
[White "Luijkx, Dagmar"]
[Black "Van Groning, Christian"]
[Result "0-1"]
[TimeControl "90 minutes + 30 seconds"]
[WhiteElo "1653"]
[BlackElo "1778"]

1. e4 {[%clk 01:30:57]} {[%emt 00:00:02]} e5 {[%clk 01:30:59]} 2. Nc3 {[%clk
01:31:22]} {[%emt 00:00:05]} Nc6 {[%clk 01:31:22]} {[%emt 00:00:08]} 3. Bc4
{[%clk 01:31:47]} {[%emt 00:00:05]} Nf6 {[%clk 01:31:44]} {[%emt 00:00:08]} 4.
d3 {[%clk 01:31:58]} {[%emt 00:00:19]} Bb4 {[%clk 01:32:08]} {[%emt 00:00:05]}
5. Nge2 {[%clk 01:32:00]} {[%emt 00:00:29]} d6 {[%clk 01:32:21]} {[%emt
00:00:17]} 6. Bg5 {[%clk 01:32:16]} {[%emt 00:00:14]} Nd4 {[%clk 01:32:21]}
{[%emt 00:00:30]} 7. O-O {[%clk 01:28:17]} {[%emt 00:04:28]} Nxe2+ {[%clk
01:32:28]} {[%emt 00:00:23]} 8. Qxe2 {[%clk 01:27:52]} {[%emt 00:00:55]} c6
{[%clk 01:31:45]} {[%emt 00:01:14]} 9. f4 {[%clk 01:26:50]} {[%emt 00:01:31]}
Be6 {[%clk 01:28:46]} {[%emt 00:03:29]} 10. Bxe6 {[%clk 01:26:29]} {[%emt
00:00:51]} fxe6 {[%clk 01:29:14]} {[%emt 00:00:02]} 11. fxe5 {[%clk 01:25:36]}
{[%emt 00:01:23]} dxe5 {[%clk 01:29:34]} {[%emt 00:00:10]} 12. Bxf6 {[%clk
01:25:09]} {[%emt 00:00:58]} gxf6 {[%clk 01:29:54]} {[%emt 00:00:10]} 13. Qh5+
{[%clk 01:25:01]} {[%emt 00:00:37]} Ke7 {[%clk 01:29:21]} {[%emt 00:01:03]} 14.
Ne2 {[%clk 01:12:44]} {[%emt 00:12:48]} Bc5+ {[%clk 01:27:55]} {[%emt
00:01:56]} 15. Kh1 {[%clk 01:11:54]} {[%emt 00:01:19]} Qe8 {[%clk 01:27:36]}
{[%emt 00:00:44]} 16. Qxe8+ {[%clk 01:10:28]} {[%emt 00:02:02]} Raxe8 {[%clk
01:28:00]} {[%emt 00:00:06]} 17. Rf3 {[%clk 01:10:37]} {[%emt 00:00:20]} Rhg8
{[%clk 01:28:07]} {[%emt 00:00:23]} 18. Raf1 {[%clk 01:10:30]} {[%emt
00:00:37]} Rg6 {[%clk 01:28:23]} {[%emt 00:00:14]} 19. c3 {[%clk 01:05:46]}
{[%emt 00:05:15]} Rd8 {[%clk 01:27:17]} {[%emt 00:01:36]} 20. a4 {[%clk
01:04:34]} {[%emt 00:01:42]} a5 {[%clk 01:26:52]} {[%emt 00:00:55]} 21. Rb1
{[%clk 01:00:52]} {[%emt 00:04:13]} Rd7 {[%clk 01:24:26]} {[%emt 00:02:55]} 22.
b4 {[%clk 00:58:51]} {[%emt 00:02:31]} axb4 {[%clk 01:23:22]} {[%emt 00:01:33]}
23. cxb4 {[%clk 00:59:07]} {[%emt 00:00:15]} Ba7 {[%clk 01:23:19]} {[%emt
00:00:32]} 24. a5 {[%clk 00:55:23]} {[%emt 00:04:15]} Rg8 {[%clk 01:22:57]}
{[%emt 00:00:51]} 25. Ng3 {[%clk 00:53:58]} {[%emt 00:01:56]} Rgd8 {[%clk
01:22:25]} {[%emt 00:01:02]} 26. Rbf1 {[%clk 00:51:01]} {[%emt 00:03:27]} Rf8
{[%clk 01:21:03]} {[%emt 00:01:52]} 27. Nh5 {[%clk 00:50:57]} {[%emt 00:00:34]}
f5 {[%clk 01:20:59]} {[%emt 00:00:33]} 28. exf5 {[%clk 00:50:17]} {[%emt
00:01:11]} exf5 {[%clk 01:21:19]} {[%emt 00:00:09]} 29. Rxf5 {[%clk 00:50:21]}
{[%emt 00:00:27]} Rxf5 {[%clk 01:21:43]} {[%emt 00:00:06]} 30. Rf3 {[%emt
00:00:05]} Rf4 31. Rxf4 {[%clk 00:50:46]} Rxd3 {[%clk 01:22:03]} {[%emt
00:00:10]} 32. Rf5 {[%clk 00:50:39]} Kd6 {[%clk 01:22:21]} 33. Rxe5 {[%clk
00:46:45]} Rc3 {[%emt 00:04:49]} 34. Re1 Rb3 {[%clk 01:22:28]} 35. Rd1+ {[%clk
00:45:50]} {[%emt 00:01:26]} Ke7 {[%clk 01:22:44]} {[%emt 00:00:13]} 36. Re1+
{[%clk 00:44:31]} {[%emt 00:01:49]} Kf7 {[%clk 01:21:50]} {[%emt 00:01:22]} 37.
g3 {[%clk 00:44:06]} {[%emt 00:00:58]} Rxb4 {[%clk 01:22:03]} {[%emt 00:00:17]}
38. Rf1+ {[%clk 00:44:24]} {[%emt 00:00:11]} Ke7 {[%clk 01:22:10]} {[%emt
00:00:22]} 39. Re1+ {[%clk 00:44:45]} {[%emt 00:00:10]} Kf7 {[%clk 01:22:27]}
{[%emt 00:00:14]} 40. Rd1 {[%clk 00:44:47]} {[%emt 00:00:27]} Ke7 {[%clk
01:22:48]} {[%emt 00:00:09]} 41. Ra1 {[%clk 00:44:06]} {[%emt 00:01:12]} Bd4
{[%clk 01:22:26]} {[%emt 00:00:47]} 42. Rd1 {[%clk 00:44:04]} {[%emt 00:00:36]}
c5 {[%clk 01:22:34]} {[%emt 00:00:24]} 43. Nf4 {[%clk 00:44:20]} {[%emt
00:00:13]} Ra4 {[%clk 01:20:30]} {[%emt 00:02:34]} 44. Nd5+ {[%clk 00:43:59]}
{[%emt 00:00:51]} Kd6 {[%clk 01:19:39]} {[%emt 00:01:20]} 45. Nb6 {[%clk
00:44:06]} {[%emt 00:00:25]} Ra1 {[%clk 01:19:07]} {[%emt 00:01:01]} 46. Rxa1
{[%clk 00:43:46]} {[%emt 00:00:49]} Bxa1 {[%clk 01:19:31]} {[%emt 00:00:06]} 47.
Kg2 {[%clk 00:43:46]} {[%emt 00:00:30]} Bc3 {[%clk 01:19:54]} {[%emt 00:00:05]}
48. Kf3 {[%clk 00:44:01]} {[%emt 00:00:18]} Ke6 {[%clk 01:19:50]} {[%emt
00:00:32]} 49. Nc4 {[%clk 00:43:31]} {[%emt 00:01:01]} Kd5 {[%clk 01:18:01]}
{[%emt 00:02:19]} 50. Nb6+ {[%clk 00:43:27]} {[%emt 00:00:34]} Kd4 {[%clk
01:18:16]} {[%emt 00:00:16]} 51. h4 {[%clk 00:43:20]} {[%emt 00:00:38]} Bxa5
{[%clk 01:18:36]} {[%emt 00:00:10]} 52. Na4 {[%clk 00:43:38]} {[%emt 00:00:11]}
b5 {[%clk 01:18:52]} {[%emt 00:00:14]} 53. Nb2 {[%clk 00:43:36]} {[%emt
00:00:32]} Bc3 {[%clk 01:18:44]} {[%emt 00:00:37]} 54. Nd1 {[%clk 00:43:56]}
{[%emt 00:00:11]} b4 {[%clk 01:18:43]} {[%emt 00:00:30]} 55. g4 {[%clk
00:44:13]} {[%emt 00:00:14]} b3 {[%clk 01:18:58]} {[%emt 00:00:15]} 56. g5
{[%clk 00:44:16]} {[%emt 00:00:27]} b2 {[%clk 01:19:17]} {[%emt 00:00:11]} 57.
Nxb2 {[%clk 00:44:40]} {[%emt 00:00:06]} Bxb2 {[%clk 01:19:45]} {[%emt
00:00:02]} 58. h5 {[%clk 00:45:02]} {[%emt 00:00:08]} Kd3 {[%clk 01:20:10]}
{[%emt 00:00:05]} 59. g6 {[%clk 00:44:35]} {[%emt 00:00:57]} hxg6 {[%clk
01:20:35]} {[%emt 00:00:05]} 60. h6 {[%clk 00:44:37]} {[%emt 00:00:27]} Bh8
{[%clk 01:20:58]} {[%emt 00:00:06]} 61. Kf4 {[%clk 00:44:58]} {[%emt 00:00:10]}
c4 {[%clk 01:21:16]} {[%emt 00:00:12]} 62. Kg5 {[%clk 00:45:23]} {[%emt
00:00:05]} c3 {[%clk 01:21:31]} {[%emt 00:00:15]} 63. Kxg6 {[%clk 00:45:45]}
{[%emt 00:00:08]} Bd4 {[%clk 01:21:36]} {[%emt 00:00:25]} 64. h7 {[%clk
00:45:58]} {[%emt 00:00:17]} c2 {[%clk 01:21:59]} {[%emt 00:00:07]} 65. Kf7
{[%clk 00:46:22]} {[%emt 00:00:06]} c1=Q {[%clk 01:22:15]} {[%emt 00:00:13]}
0-1

[Event "ONJK 2024 ABC"]
[Site "Velp, Netherlands"]
[Date "2024.08.06"]
[Round "6.12"]
[White "Bos, Yaro"]
[Black "Henckens, Elof"]
[Result "0-1"]
[TimeControl "90 minutes + 30 seconds"]
[WhiteElo "1270"]
[BlackElo "1707"]

1. e4 {[%clk 01:30:59]} e5 {[%clk 01:30:56]} {[%emt 00:00:05]} 2. Nf3 {[%clk
01:31:25]} {[%emt 00:00:04]} Nf6 {[%clk 01:31:22]} {[%emt 00:00:04]} 3. Nc3
{[%clk 01:31:47]} {[%emt 00:00:08]} Bb4 {[%clk 01:31:50]} {[%emt 00:00:02]} 4.
Nxe5 {[%clk 01:31:41]} {[%emt 00:00:35]} O-O {[%clk 01:31:55]} {[%emt
00:00:26]} 5. b3 {[%clk 01:30:33]} {[%emt 00:01:39]} Re8 {[%clk 01:30:49]}
{[%emt 00:01:35]} 6. Nd3 {[%clk 01:29:03]} {[%emt 00:02:00]} Bxc3 {[%clk
01:31:05]} {[%emt 00:00:14]} 7. dxc3 {[%clk 01:29:25]} {[%emt 00:00:08]} Nxe4
{[%clk 01:31:14]} {[%emt 00:00:20]} 8. Be2 {[%clk 01:29:03]} {[%emt 00:00:53]}
Nxc3 {[%clk 01:31:20]} {[%emt 00:00:23]} 9. Qd2 {[%clk 01:29:20]} {[%emt
00:00:14]} Rxe2+ {[%clk 01:31:35]} {[%emt 00:00:15]} 10. Qxe2 {[%emt 00:00:05]}
Nxe2 {[%clk 01:31:55]} {[%emt 00:00:08]} 11. Kxe2 {[%clk 01:30:16]} {[%emt
00:00:01]} d6 {[%clk 01:31:55]} {[%emt 00:00:30]} 12. Re1 {[%clk 01:30:36]}
{[%emt 00:00:10]} Bf5 {[%clk 01:31:37]} {[%emt 00:00:47]} 13. Kf1 {[%clk
01:28:58]} {[%emt 00:02:08]} Bxd3+ {[%clk 01:31:47]} {[%emt 00:00:21]} 14. cxd3
{[%clk 01:29:27]} h6 {[%clk 01:31:50]} {[%emt 00:00:26]} 15. Bb2 {[%clk
01:29:48]} {[%emt 00:00:09]} Nc6 {[%clk 01:30:38]} {[%emt 00:01:42]} 16. Re3
{[%clk 01:29:00]} {[%emt 00:01:18]} Qd7 {[%clk 01:30:23]} {[%emt 00:00:45]} 17.
Rae1 {[%clk 01:29:13]} {[%emt 00:00:18]} Kf8 {[%clk 01:30:20]} {[%emt
00:00:33]} 18. Kg1 {[%clk 01:29:08]} {[%emt 00:00:34]} f6 {[%clk 01:29:32]}
{[%emt 00:01:17]} 19. Bc3 {[%clk 01:27:34]} {[%emt 00:02:05]} Kf7 {[%clk
01:26:37]} {[%emt 00:03:26]} 20. a4 {[%clk 01:25:43]} {[%emt 00:02:21]} a5
{[%clk 01:24:34]} {[%emt 00:02:33]} 21. h3 {[%clk 01:24:40]} {[%emt 00:01:32]}
Qf5 {[%clk 01:21:49]} {[%emt 00:03:14]} 22. Rf3 {[%clk 01:22:00]} {[%emt
00:03:12]} Qd5 {[%clk 01:21:27]} {[%emt 00:00:51]} 23. Re4 {[%clk 01:21:26]}
{[%emt 00:01:05]} Qxb3 {[%clk 01:15:37]} {[%emt 00:06:18]} 24. Bd2 {[%clk
01:20:39]} {[%emt 00:01:18]} Qd1+ {[%clk 01:15:31]} {[%emt 00:00:35]} 25. Be1
{[%emt 00:00:38]} Re8 {[%clk 01:15:32]} 26. Rfe3 {[%clk 01:20:34]} {[%emt
00:00:58]} Rxe4 {[%clk 01:15:16]} {[%emt 00:00:45]} 27. Rxe4 {[%clk 01:21:02]}
Qxd3 {[%clk 01:15:14]} {[%emt 00:00:33]} 28. f3 {[%clk 01:21:21]} {[%emt
00:00:12]} d5 {[%clk 01:14:14]} {[%emt 00:01:30]} 29. Rg4 {[%clk 01:21:28]}
{[%emt 00:00:23]} Ne5 {[%clk 01:14:03]} {[%emt 00:00:40]} 30. Rh4 {[%clk
01:21:25]} {[%emt 00:00:33]} Qd1 {[%clk 01:14:11]} {[%emt 00:00:21]} 31. Kf1
{[%clk 01:21:39]} {[%emt 00:00:17]} Nd3 {[%clk 01:14:33]} {[%emt 00:00:08]} 32.
Rd4 {[%clk 01:21:38]} {[%emt 00:00:32]} Qxe1# {[%clk 01:14:57]} {[%emt
00:00:02]} 0-1

[Event "ONJK 2024 ABC"]
[Site "Velp, Netherlands"]
[Date "2024.08.06"]
[Round "6.13"]
[White "Roebers, Bregje"]
[Black "De Jong, Lode"]
[Result "0-1"]
[TimeControl "90 minutes + 30 seconds"]
[WhiteElo "1796"]
[BlackElo "1755"]

1. e4 {[%clk 01:30:32]} {[%emt 00:00:25]} c5 {[%clk 01:30:59]} {[%emt
00:00:04]} 2. Nc3 {[%clk 01:30:38]} {[%emt 00:00:20]} d6 {[%clk 01:31:27]}
{[%emt 00:00:06]} 3. Bc4 {[%clk 01:28:39]} {[%emt 00:02:28]} e6 {[%clk
01:30:52]} {[%emt 00:01:06]} 4. d3 {[%clk 01:26:51]} {[%emt 00:02:17]} Nc6
{[%clk 01:30:59]} {[%emt 00:00:24]} 5. a4 {[%clk 01:22:02]} {[%emt 00:05:18]}
g6 {[%clk 01:30:14]} {[%emt 00:01:15]} 6. f4 {[%clk 01:19:47]} {[%emt
00:02:46]} Bg7 {[%clk 01:30:32]} {[%emt 00:00:11]} 7. Nf3 {[%clk 01:18:28]}
{[%emt 00:01:49]} Nge7 {[%clk 01:30:44]} {[%emt 00:00:18]} 8. O-O {[%clk
01:13:59]} {[%emt 00:04:59]} O-O {[%clk 01:30:41]} {[%emt 00:00:34]} 9. Qe1
{[%clk 01:12:17]} {[%emt 00:02:12]} d5 {[%clk 01:28:50]} {[%emt 00:02:20]} 10.
Ba2 {[%clk 01:10:29]} {[%emt 00:02:18]} Nd4 {[%clk 01:27:27]} {[%emt 00:01:52]}
11. Nxd4 {[%clk 01:07:49]} {[%emt 00:03:12]} cxd4 {[%clk 01:24:47]} {[%emt
00:03:10]} 12. Ne2 {[%clk 01:06:53]} {[%emt 00:01:25]} dxe4 {[%clk 01:24:42]}
{[%emt 00:00:36]} 13. dxe4 {[%clk 01:06:50]} {[%emt 00:00:32]} b6 {[%clk
01:18:17]} {[%emt 00:06:55]} 14. Qh4 {[%clk 01:00:20]} {[%emt 00:07:00]} Bb7
{[%clk 01:11:48]} {[%emt 00:07:00]} 15. f5 {[%clk 00:55:35]} {[%emt 00:05:14]}
gxf5 {[%clk 01:03:25]} {[%emt 00:08:53]} 16. Bg5 {[%clk 00:55:12]} {[%emt
00:00:53]} f6 {[%clk 01:01:41]} {[%emt 00:02:15]} 17. Bxe6+ {[%clk 00:53:53]}
{[%emt 00:01:48]} Kh8 {[%clk 01:02:01]} {[%emt 00:00:10]} 18. Bh6 {[%clk
00:53:10]} {[%emt 00:01:13]} Ng6 {[%clk 00:54:01]} {[%emt 00:08:31]} 19. Bxg7+
{[%clk 00:50:08]} {[%emt 00:03:32]} Kxg7 {[%clk 00:54:12]} {[%emt 00:00:19]} 20.
Qh5 {[%clk 00:46:55]} {[%emt 00:03:42]} fxe4 {[%clk 00:51:19]} {[%emt
00:03:24]} 21. Ng3 {[%clk 00:44:10]} {[%emt 00:03:15]} Qc7 {[%clk 00:45:36]}
{[%emt 00:06:13]} 22. Nf5+ {[%clk 00:39:35]} {[%emt 00:05:05]} Kh8 {[%clk
00:45:55]} {[%emt 00:00:12]} 23. Qh6 {[%clk 00:33:37]} {[%emt 00:06:27]} Rfe8
{[%clk 00:40:31]} {[%emt 00:05:55]} 24. Bb3 {[%clk 00:26:16]} {[%emt 00:07:51]}
Rad8 {[%clk 00:39:40]} {[%emt 00:01:21]} 25. h4 {[%clk 00:22:53]} {[%emt
00:03:52]} Rf8 {[%clk 00:39:08]} {[%emt 00:01:03]} 26. h5 {[%clk 00:18:12]}
{[%emt 00:05:10]} Ne5 {[%clk 00:39:03]} {[%emt 00:00:35]} 27. Qf4 {[%clk
00:17:57]} {[%emt 00:00:45]} Ba6 {[%clk 00:34:45]} {[%emt 00:04:49]} 28. Qh6
{[%clk 00:09:49]} {[%emt 00:08:37]} Bxf1 {[%clk 00:34:11]} {[%emt 00:01:04]} 29.
Rxf1 {[%clk 00:10:13]} {[%emt 00:00:06]} Ng4 {[%clk 00:30:43]} {[%emt
00:03:59]} 30. Qf4 {[%clk 00:09:07]} {[%emt 00:01:35]} Qxf4 {[%clk 00:30:41]}
{[%emt 00:00:33]} 31. Rxf4 {[%clk 00:09:31]} {[%emt 00:00:05]} Ne3 {[%clk
00:30:53]} {[%emt 00:00:19]} 32. Kf2 {[%clk 00:05:17]} {[%emt 00:04:43]} Nxf5
{[%clk 00:30:13]} {[%emt 00:01:11]} 33. Rxf5 {[%clk 00:05:42]} {[%emt
00:00:05]} d3 {[%clk 00:29:04]} {[%emt 00:01:40]} 34. c3 {[%clk 00:03:54]}
{[%emt 00:02:18]} Kg7 {[%clk 00:27:54]} {[%emt 00:01:40]} 35. Ke3 {[%clk
00:03:15]} {[%emt 00:01:08]} Rfe8 {[%clk 00:27:51]} {[%emt 00:00:34]} 36. g4
{[%clk 00:02:26]} {[%emt 00:01:19]} d2 {[%clk 00:24:08]} {[%emt 00:04:13]} 37.
Bd1 {[%clk 00:02:47]} {[%emt 00:00:09]} Rd3+ {[%clk 00:24:25]} {[%emt
00:00:13]} 38. Ke2 {[%clk 00:02:22]} {[%emt 00:00:55]} Rg3 {[%clk 00:23:03]}
{[%emt 00:01:52]} 39. Kf2 {[%clk 00:02:01]} {[%emt 00:00:51]} Rh3 {[%clk
00:21:27]} {[%emt 00:02:06]} 40. Rd5 {[%clk 00:01:10]} {[%emt 00:01:20]} Rh1
{[%clk 00:16:59]} {[%emt 00:04:58]} 41. Be2 {[%clk 00:01:04]} {[%emt 00:00:36]}
e3+ {[%clk 00:16:49]} {[%emt 00:00:40]} 42. Kf3 {[%clk 00:01:26]} {[%emt
00:00:08]} Ra1 {[%clk 00:16:07]} {[%emt 00:01:13]} 43. Rd7+ {[%clk 00:01:08]}
{[%emt 00:00:47]} Kf8 {[%clk 00:15:59]} {[%emt 00:00:38]} 44. Rd4 {[%clk
00:01:00]} {[%emt 00:00:37]} Re5 {[%clk 00:16:01]} {[%emt 00:00:28]} 45. b3
{[%clk 00:01:01]} {[%emt 00:00:29]} Ke7 {[%clk 00:16:01]} {[%emt 00:00:30]} 46.
Kf4 {[%clk 00:00:55]} {[%emt 00:00:36]} Re1 {[%clk 00:16:00]} {[%emt 00:00:30]}
47. Kf3 {[%clk 00:01:16]} {[%emt 00:00:10]} Re6 {[%clk 00:16:26]} {[%emt
00:00:04]} 48. Rd3 {[%clk 00:01:03]} {[%emt 00:00:43]} Rd6 {[%clk 00:16:14]}
{[%emt 00:00:42]} 49. Rxe3+ {[%clk 00:00:53]} {[%emt 00:00:39]} Kd8 {[%clk
00:16:40]} {[%emt 00:00:05]} 0-1

[Event "ONJK 2024 ABC"]
[Site "Velp, Netherlands"]
[Date "2024.08.06"]
[Round "6.14"]
[White "Lejzerowicz, Nathan"]
[Black "Dijkhuijsen, Thomas"]
[Result "1/2-1/2"]
[TimeControl "90 minutes + 30 seconds"]
[WhiteElo "1668"]
[BlackElo "1750"]

1. c4 {[%clk 01:30:43]} {[%emt 00:00:17]} e5 {[%clk 01:30:48]} {[%emt
00:00:12]} 2. Nc3 {[%clk 01:30:51]} {[%emt 00:00:23]} Nf6 {[%clk 01:31:01]}
{[%emt 00:00:16]} 3. g3 {[%clk 01:30:44]} {[%emt 00:00:37]} Bb4 {[%clk
01:30:47]} {[%emt 00:00:45]} 4. Bg2 {[%clk 01:30:39]} {[%emt 00:00:35]} O-O
{[%clk 01:30:59]} {[%emt 00:00:17]} 5. Nf3 {[%clk 01:30:16]} {[%emt 00:00:54]}
Nc6 {[%clk 01:30:05]} {[%emt 00:01:24]} 6. O-O {[%clk 01:29:24]} {[%emt
00:01:22]} Re8 {[%clk 01:26:41]} {[%emt 00:03:55]} 7. e3 {[%clk 01:24:48]}
{[%emt 00:05:06]} Bxc3 {[%clk 01:24:22]} {[%emt 00:02:48]} 8. dxc3 {[%clk
01:22:43]} {[%emt 00:02:35]} d6 {[%clk 01:22:03]} {[%emt 00:02:49]} 9. b4
{[%clk 01:22:13]} {[%emt 00:01:00]} a6 {[%clk 01:10:21]} {[%emt 00:12:11]} 10.
a4 {[%clk 01:19:07]} {[%emt 00:03:36]} Bg4 {[%clk 01:09:57]} {[%emt 00:00:54]}
11. h3 {[%clk 01:14:27]} {[%emt 00:05:10]} Be6 {[%clk 01:05:16]} {[%emt
00:05:11]} 12. Nd2 {[%clk 01:11:26]} {[%emt 00:03:31]} Qd7 {[%clk 01:00:59]}
{[%emt 00:04:48]} 13. Kh2 {[%clk 01:09:54]} {[%emt 00:02:00]} e4 {[%clk
00:56:37]} {[%emt 00:04:53]} 14. Nxe4 {[%clk 01:00:19]} {[%emt 00:10:05]} Nxe4
{[%clk 00:56:01]} {[%emt 00:01:05]} 15. Bxe4 {[%clk 00:56:29]} {[%emt
00:04:20]} Bxc4 {[%clk 00:51:46]} {[%emt 00:04:45]} 16. Bd3 {[%clk 00:53:07]}
{[%emt 00:03:53]} Ne5 {[%clk 00:47:54]} {[%emt 00:04:22]} 17. Bxc4 {[%clk
00:50:01]} {[%emt 00:03:36]} Nxc4 {[%clk 00:48:05]} {[%emt 00:00:18]} 18. Qd5
{[%clk 00:49:44]} {[%emt 00:00:48]} Nb6 {[%clk 00:38:27]} {[%emt 00:10:08]} 19.
Qb3 {[%clk 00:44:10]} {[%emt 00:06:04]} Qe6 {[%clk 00:36:28]} {[%emt 00:02:29]}
20. Qxe6 {[%clk 00:41:17]} {[%emt 00:03:23]} Rxe6 {[%clk 00:35:52]} {[%emt
00:01:05]} 21. Rd1 {[%clk 00:41:09]} {[%emt 00:00:37]} Rae8 {[%clk 00:34:30]}
{[%emt 00:01:54]} 22. Rd4 {[%clk 00:39:22]} {[%emt 00:02:17]} Re4 {[%clk
00:30:30]} {[%emt 00:04:29]} 23. Bb2 {[%clk 00:35:45]} {[%emt 00:04:08]} Nc4
{[%clk 00:28:54]} {[%emt 00:02:05]} 24. Rb1 {[%clk 00:34:21]} {[%emt 00:01:54]}
h6 {[%clk 00:23:50]} {[%emt 00:05:34]} 25. b5 {[%clk 00:31:54]} {[%emt
00:02:57]} a5 {[%clk 00:22:10]} {[%emt 00:02:10]} 26. Kg2 {[%clk 00:25:20]}
{[%emt 00:07:05]} Nb6 {[%clk 00:17:48]} {[%emt 00:04:52]} 27. Ra1 {[%clk
00:23:32]} {[%emt 00:02:18]} Nc4 {[%clk 00:16:15]} {[%emt 00:02:02]} 28. Bc1
{[%clk 00:18:47]} {[%emt 00:05:15]} Rxd4 {[%clk 00:14:53]} {[%emt 00:01:52]} 29.
cxd4 {[%clk 00:17:25]} {[%emt 00:01:53]} d5 {[%clk 00:14:56]} {[%emt 00:00:27]}
30. Ra2 {[%clk 00:16:15]} {[%emt 00:01:40]} Re6 {[%clk 00:11:15]} {[%emt
00:04:11]} 31. Bd2 {[%clk 00:15:05]} {[%emt 00:01:40]} b6 {[%clk 00:10:15]}
{[%emt 00:01:30]} 32. Rc2 {[%clk 00:12:52]} {[%emt 00:02:43]} 1/2-1/2

[Event "ONJK 2024 ABC"]
[Site "Velp, Netherlands"]
[Date "2024.08.06"]
[Round "6.15"]
[White "Georgopoulos, Mylo"]
[Black "Hesse, Frederik"]
[Result "1-0"]
[TimeControl "90 minutes + 30 seconds"]
[WhiteElo "1776"]
[BlackElo "1684"]

1. e4 {[%clk 01:30:58]} {[%emt 00:00:02]} c6 {[%clk 01:30:52]} {[%emt
00:00:08]} 2. d4 {[%clk 01:31:25]} {[%emt 00:00:03]} d5 {[%clk 01:31:16]}
{[%emt 00:00:06]} 3. e5 {[%clk 01:31:52]} {[%emt 00:00:03]} c5 {[%clk
01:31:38]} {[%emt 00:00:09]} 4. c3 {[%clk 01:32:14]} {[%emt 00:00:08]} Nc6
{[%clk 01:31:45]} {[%emt 00:00:23]} 5. Nf3 {[%clk 01:32:39]} {[%emt 00:00:05]}
Bf5 {[%clk 01:31:46]} {[%emt 00:00:28]} 6. Bd3 {[%clk 01:32:57]} {[%emt
00:00:13]} Bg4 {[%clk 01:32:02]} {[%emt 00:00:15]} 7. Bb5 {[%clk 01:33:01]}
{[%emt 00:00:26]} a6 {[%clk 01:32:12]} {[%emt 00:00:20]} 8. Bxc6+ {[%clk
01:33:15]} {[%emt 00:00:16]} bxc6 {[%clk 01:32:35]} {[%emt 00:00:07]} 9. Be3
{[%clk 01:33:22]} {[%emt 00:00:23]} cxd4 {[%clk 01:32:34]} {[%emt 00:00:31]} 10.
cxd4 {[%clk 01:33:30]} {[%emt 00:00:21]} e6 {[%clk 01:32:30]} {[%emt 00:00:34]}
11. Nbd2 {[%clk 01:33:02]} {[%emt 00:00:58]} Bb4 {[%clk 01:32:28]} {[%emt
00:00:32]} 12. O-O {[%clk 01:31:28]} {[%emt 00:02:04]} Ne7 {[%clk 01:32:48]}
{[%emt 00:00:10]} 13. h3 {[%clk 01:30:52]} {[%emt 00:01:06]} Bh5 {[%clk
01:33:08]} {[%emt 00:00:09]} 14. g4 {[%clk 01:29:39]} {[%emt 00:01:45]} Bg6
{[%clk 01:33:27]} {[%emt 00:00:10]} 15. Qa4 {[%clk 01:29:58]} {[%emt 00:00:11]}
Qb6 {[%clk 01:30:05]} {[%emt 00:03:53]} 16. a3 {[%clk 01:25:13]} {[%emt
00:05:14]} Bxd2 {[%clk 01:30:17]} {[%emt 00:00:17]} 17. Bxd2 {[%clk 01:25:21]}
{[%emt 00:00:22]} Qxb2 {[%clk 01:30:06]} {[%emt 00:00:41]} 18. Bb4 {[%clk
01:23:37]} {[%emt 00:02:14]} Qe2 {[%clk 01:27:41]} {[%emt 00:02:54]} 19. Bxe7
{[%clk 01:20:16]} {[%emt 00:03:53]} Kxe7 {[%clk 01:27:58]} {[%emt 00:00:13]} 20.
Qxc6 {[%clk 01:05:34]} {[%emt 00:15:11]} Qxf3 {[%clk 01:27:20]} {[%emt
00:01:08]} 21. Rab1 {[%clk 01:04:49]} {[%emt 00:01:16]} Bxb1 {[%clk 01:27:39]}
{[%emt 00:00:11]} 22. Rxb1 {[%clk 01:05:14]} {[%emt 00:00:05]} Rab8 {[%clk
01:23:47]} {[%emt 00:04:23]} 23. Qd6+ {[%clk 01:05:22]} {[%emt 00:00:22]} Ke8
{[%clk 01:24:01]} {[%emt 00:00:16]} 24. Rxb8# {[%clk 01:05:45]} {[%emt
00:00:06]} 1-0